bitfinex/quotes_BTCUSD_20240717
["timestamp","ask_amount","ask_price","bid_price","bid_amount"]
[1721226084566,0.307603,65019.0,65009.0,0.0027273]
[1721226084772,0.307603,65019.0,65004.0,0.369277]
[1721226084773,0.0752,65022.0,65011.0,0.307639]
[1721226084969,0.307568,65027.0,65016.0,0.153807]
[1721226085169,0.153794,65023.0,65017.0,0.04641683]
[1721226085384,0.153794,65022.0,65017.0,0.04641683]
[1721226085594,0.15379,65024.0,65018.0,0.153803]
[1721226085790,0.15379,65024.0,65017.0,0.04641683]
[1721226085791,0.307572,65026.0,65017.0,0.04641683]
[1721226086115,0.0752,65029.0,65016.0,0.002]
[1721226086116,0.00964349,65023.0,65016.0,0.002]
[1721226086327,0.60399079,65017.0,65016.0,0.002]
[1721226086548,1.37359453,65017.0,65016.0,0.002]
[1721226086782,1.3832261,65017.0,65016.0,0.002]
[1721226086997,0.93304031,65017.0,65016.0,0.002]
[1721226087210,0.00963157,65017.0,65016.0,0.002]
[1721226087617,0.153805,65017.0,65016.0,0.002]
[1721226087843,0.77861854,65017.0,65016.0,0.002]
[1721226088250,0.77961854,65017.0,65016.0,0.01]
[1721226088451,1.24161128,65017.0,65016.0,0.01]
[1721226088657,1.24161128,65017.0,65016.0,0.008]
[1721226089082,1.39596085,65017.0,65016.0,0.008]
[1721226089280,1.88327185,65017.0,65016.0,0.008]
[1721226089896,2.46658285,65017.0,65016.0,0.008]
[1721226090096,2.46658285,65017.0,64991.0,0.0027273]
[1721226090097,0.461595,64992.0,64991.0,0.0027273]
[1721226090326,0.769325,64992.0,64991.0,0.0027273]
[1721226090535,0.769325,64992.0,64980.0,0.061631]
[1721226090536,0.153891,64981.0,64980.0,0.061631]
[1721226090735,0.1539,64978.0,64974.0,0.0027273]
[1721226090936,0.1539,64978.0,64975.0,0.0533956]
[1721226091163,0.00933252,64977.0,64970.0,0.06818]
[1721226091348,0.00933252,64977.0,64971.0,0.0027273]
[1721226091535,0.00933252,64977.0,64974.0,0.153906]
[1721226091692,0.153896,64979.0,64971.0,0.153913]
[1721226091875,0.00982716,64976.0,64972.0,0.0027273]
[1721226092081,0.153892,64981.0,64973.0,0.04618463]
[1721226092423,0.153897,64979.0,64973.0,0.04618463]
[1721226092579,0.153898,64978.0,64973.0,0.04618463]
[1721226092780,0.001,64977.0,64973.0,0.04618463]
[1721226092984,0.16374051,64977.0,64974.0,0.0027273]
[1721226093198,0.16374051,64977.0,64971.0,0.0027273]
[1721226093404,0.16374051,64977.0,64973.0,0.007]
[1721226093601,0.16374051,64977.0,64973.0,0.017]
[1721226093602,0.769537,64974.0,64973.0,0.017]
[1721226093937,1.68454874,64974.0,64973.0,0.017]
[1721226094134,2.30647069,64974.0,64973.0,0.007]
[1721226094502,2.35653486,64974.0,64973.0,0.007]
[1721226094743,1.077503,64965.0,64964.0,0.009174]
[1721226094951,1.24146074,64965.0,64964.0,0.009174]
[1721226095367,0.779221,64965.0,64964.0,0.009174]
[1721226095563,0.471363,64965.0,64964.0,0.009174]
[1721226095765,0.779221,64965.0,64964.0,0.009174]
[1721226095977,0.471363,64965.0,64964.0,0.009174]
[1721226096560,0.476363,64965.0,64964.0,0.010174]
[1721226097400,0.471363,64965.0,64964.0,0.009174]
[1721226097610,0.009576,64965.0,64964.0,0.009174]
[1721226097812,0.153922,64968.0,64964.0,0.009174]
[1721226098006,0.153929,64965.0,64964.0,0.009174]
[1721226098519,0.153929,64965.0,64964.0,0.02759413]
[1721226098520,0.00780136,64965.0,64964.0,0.02759413]
[1721226098920,0.005,64965.0,64964.0,0.009174]
[1721226099446,0.01280136,64965.0,64964.0,0.920729]
[1721226099955,0.005,64965.0,64964.0,0.920729]
[1721226100319,0.005,64965.0,64964.0,0.612867]
[1721226100844,0.153907,64974.0,64968.0,0.153921]
[1721226101040,0.153902,64977.0,64971.0,0.153913]
[1721226101244,0.153892,64981.0,64975.0,0.153904]
[1721226101425,0.153895,64979.0,64973.0,0.153909]
[1721226101624,0.307773,64983.0,64974.0,0.153907]
[1721226101625,0.153893,64980.0,64974.0,0.153907]
[1721226102024,0.307765,64985.0,64968.0,0.3999119]
[1721226102227,0.15389,64982.0,64975.0,0.153904]
[1721226102429,0.0805,64993.0,64969.0,0.307836]
[1721226102633,0.307759,64986.0,64970.0,0.0027273]
[1721226102835,0.153892,64981.0,64975.0,0.153905]
[1721226103775,0.153894,64980.0,64973.0,0.461727]
[1721226104008,0.153894,64980.0,64974.0,0.0769553]
[1721226104135,0.153894,64980.0,64974.0,0.2308623]
[1721226104364,0.156891,64981.0,64975.0,0.153904]
[1721226104908,0.153902,64976.0,64975.0,0.001]
[1721226105061,0.769512,64976.0,64975.0,0.001]
[1721226105689,0.461707,64976.0,64975.0,0.001]
[1721226106035,0.002,64980.0,64975.0,0.154904]
[1721226106163,0.002,64980.0,64976.0,0.0462725]
[1721226106707,0.002,64980.0,64976.0,0.2001735]
[1721226106959,0.002,64980.0,64976.0,0.0462725]
[1721226107134,0.153888,64983.0,64976.0,0.2001735]
[1721226107335,0.153876,64988.0,64980.0,0.307784]
[1721226107540,0.1,64998.0,64980.0,0.307784]
[1721226107541,0.002,64981.0,64980.0,0.293993]
[1721226107766,0.4784,65000.0,64980.0,0.29448174]
[1721226107969,0.153853,64997.0,64981.0,0.15710904]
[1721226108183,0.307674,65004.0,64995.0,0.153856]
[1721226108337,0.0618,65011.0,64999.0,0.153848]
[1721226108535,0.153836,65005.0,65000.0,0.0153848]
[1721226108737,0.307665,65006.0,65000.0,0.0153848]
[1721226108948,0.153837,65004.0,64997.0,0.153852]
[1721226109146,0.307639,65012.0,65003.0,0.153837]
[1721226109344,0.38475679,65024.0,65008.0,0.153825]
[1721226109345,0.153808,65016.0,65008.0,0.153825]
[1721226109547,0.307615,65017.0,65007.0,0.153828]
[1721226109762,0.307615,65017.0,65004.0,0.307671]
[1721226109763,0.07717479,65015.0,65008.0,0.0027273]
[1721226109968,0.07717479,65024.0,65007.0,0.0027273]
[1721226110230,0.07717479,65017.0,65010.0,0.15382]
[1721226110424,0.07717479,65017.0,65011.0,0.1565463]
[1721226110644,0.153799,65020.0,65012.0,0.153817]
[1721226110845,0.30759,65022.0,65014.0,0.0613]
[1721226110846,0.153796,65021.0,65014.0,0.0613]
[1721226111047,0.153799,65020.0,65015.0,0.0027273]
[1721226111252,0.153801,65019.0,65015.0,0.0027273]
[1721226111451,0.307599,65020.0,65015.0,0.0027273]
[1721226111729,0.307589,65022.0,65015.0,0.00953507]
[1721226111884,0.002,65017.0,65016.0,0.0027273]
[1721226112051,0.153801,65019.0,65016.0,0.0027273]
[1721226112252,0.153792,65023.0,65016.0,0.1565343]
[1721226112448,0.44852079,65031.0,65018.0,0.307607]
[1721226112449,0.003,65019.0,65018.0,0.307607]
[1721226112751,0.003,65019.0,65018.0,1.04300144]
[1721226112977,0.003,65019.0,65018.0,1.16600144]
[1721226113398,0.003,65019.0,65018.0,1.29369986]
[1721226114383,0.153768,65033.0,65026.0,0.153782]
[1721226114589,0.307517,65037.0,65027.0,0.03567404]
[1721226114705,0.307517,65037.0,65027.0,0.03294674]
[1721226114906,0.153768,65033.0,65028.0,0.0027273]
[1721226115307,0.307517,65037.0,65028.0,0.0027273]
[1721226115308,0.153759,65037.0,65031.0,0.153771]
[1721226115511,0.368776,65046.0,65034.0,0.216265]
[1721226115512,0.307476,65046.0,65034.0,0.216265]
[1721226115713,0.153743,65044.0,65034.0,0.87601167]
[1721226115955,0.307473,65047.0,65034.0,0.56848067]
[1721226115956,0.162094,65043.0,65034.0,0.56848067]
[1721226117199,0.153748,65042.0,65034.0,0.56848067]
[1721226117350,0.00835,65043.0,65034.0,0.56848067]
[1721226117555,0.00835,65043.0,65034.0,1.13039341]
[1721226117758,0.00835,65043.0,65034.0,1.16139341]
[1721226117941,0.00835,65043.0,65034.0,1.46892441]
[1721226118764,0.00835,65043.0,65034.0,1.46092441]
[1721226118986,0.00835,65043.0,65034.0,1.46792441]
[1721226119461,0.00935,65035.0,65034.0,1.46792441]
[1721226119753,0.00835,65035.0,65034.0,1.46792441]
[1721226119933,0.00835,65035.0,65034.0,1.46092441]
[1721226120152,0.00935,65035.0,65034.0,0.0625]
[1721226120275,0.00935,65035.0,65034.0,0.0765]
[1721226120696,0.470639,65035.0,65034.0,0.014]
[1721226120905,0.470639,65035.0,65026.0,0.0027273]
[1721226120906,0.00935,65035.0,65026.0,0.0027273]
[1721226121109,0.00935,65035.0,65027.0,0.01421273]
[1721226121110,0.153772,65032.0,65027.0,0.01421273]
[1721226121310,0.00935,65035.0,65028.0,0.0027273]
[1721226121656,0.153771,65032.0,65028.0,0.0027273]
[1721226121900,0.461332,65029.0,65028.0,0.0027273]
[1721226122098,0.07717479,65031.0,65018.0,0.1187027]
[1721226122099,0.153793,65023.0,65019.0,0.0027273]
[1721226122230,0.07717479,65031.0,65020.0,0.0350636]
[1721226122231,0.307553,65030.0,65020.0,0.0350636]
[1721226122588,0.15379,65024.0,65021.0,0.0027273]
[1721226122801,0.307572,65026.0,65020.0,0.0350636]
[1721226122802,0.153786,65026.0,65020.0,0.0350636]
[1721226123001,0.153782,65027.0,65021.0,0.0027273]
[1721226123254,0.00835,65035.0,65021.0,0.0027273]
[1721226123532,0.153787,65025.0,65023.0,0.0027273]
[1721226123728,0.153787,65025.0,65022.0,0.02318936]
[1721226123963,0.307568,65027.0,65019.0,0.0027273]
[1721226124170,0.006,65030.0,64999.0,0.3232]
[1721226124171,0.15381,65015.0,65014.0,0.0027273]
[1721226124382,0.0817,65021.0,65004.0,0.153836]
[1721226124606,0.153814,65014.0,65005.0,0.0027273]
[1721226124753,0.00170002,65025.0,65005.0,0.0027273]
[1721226124754,0.006,65030.0,65007.0,0.307657]
[1721226124969,0.006,65030.0,65014.0,0.307622]
[1721226124970,0.313554,65030.0,65014.0,0.307622]
[1721226125279,0.307574,65025.0,65015.0,0.153809]
[1721226125480,0.006,65030.0,65017.0,0.1405]
[1721226125637,0.153773,65031.0,65018.0,0.15710904]
[1721226125837,0.153773,65031.0,65022.0,0.307587]
[1721226126040,0.002,65027.0,65026.0,0.153783]
[1721226126266,0.002,65027.0,65026.0,0.461352]
[1721226126466,0.153768,65033.0,65027.0,0.153782]
[1721226126670,0.153768,65033.0,65028.0,0.0027273]
[1721226126850,0.153768,65033.0,65029.0,0.07716553]
[1721226127062,0.00835,65035.0,65034.0,0.153765]
[1721226127550,0.00835,65035.0,65034.0,0.61567774]
[1721226127748,0.00835,65035.0,65034.0,0.76127774]
[1721226128013,0.00835,65035.0,65034.0,1.06880874]
[1721226128161,0.00835,65035.0,65034.0,0.10688087]
[1721226128361,0.00835,65035.0,65032.0,0.153768]
[1721226128882,0.00835,65035.0,65031.0,0.307544]
[1721226129091,0.00835,65035.0,65028.0,0.0612]
[1721226129295,0.153775,65030.0,65029.0,0.0027273]
[1721226129538,0.153775,65030.0,65022.0,0.0612]
[1721226129539,0.15378,65028.0,65023.0,0.0027273]
[1721226129746,0.153771,65032.0,65024.0,0.36557768]
[1721226129945,0.00935,65035.0,65025.0,0.0027273]
[1721226130126,0.00935,65035.0,65028.0,0.153779]
[1721226130330,0.00935,65035.0,65029.0,0.0027273]
[1721226130331,0.153766,65034.0,65029.0,0.0027273]
[1721226130527,0.163113,65035.0,65029.0,0.0027273]
[1721226130727,0.316878,65035.0,65029.0,0.0027273]
[1721226130944,0.153775,65030.0,65029.0,0.0027273]
[1721226131170,0.153775,65030.0,65028.0,0.005]
[1721226131508,0.15377,65032.0,65029.0,0.0027273]
[1721226131909,0.15377,65032.0,65028.0,0.005]
[1721226132130,0.461325,65030.0,65029.0,0.0527084]
[1721226132342,0.461325,65030.0,65017.0,0.30761]
[1721226132343,0.153788,65025.0,65021.0,0.0027273]
[1721226132563,0.08425,65035.0,65020.0,0.0027273]
[1721226132564,0.461388,65021.0,65020.0,0.0027273]
[1721226132756,0.461388,65021.0,65010.0,0.0027273]
[1721226132757,0.153817,65013.0,65010.0,0.0027273]
[1721226132956,0.23155653,65024.0,65004.0,0.0796]
[1721226132957,0.23155653,65024.0,65006.0,0.0027273]
[1721226133175,0.30763,65013.0,65007.0,0.03562663]
[1721226133377,0.153823,65010.0,65007.0,0.03562663]
[1721226133587,0.153823,65010.0,65001.0,0.369293]
[1721226133588,0.307631,65013.0,65001.0,0.06161]
[1721226133793,0.0759,65017.0,65002.0,0.0027273]
[1721226133794,0.00170002,65011.0,65002.0,0.0027273]
[1721226133985,0.153835,65005.0,64998.0,0.15385]
[1721226134122,0.30765,65009.0,64999.0,0.3104233]
[1721226134493,0.23155653,65024.0,65002.0,0.307679]
[1721226134494,0.0658,65018.0,65002.0,0.307679]
[1721226134701,0.30765,65009.0,65003.0,0.03376793]
[1721226134906,0.153829,65007.0,65003.0,0.03376793]
[1721226135031,0.307631,65013.0,65003.0,0.03376793]
[1721226135032,0.307639,65012.0,65003.0,0.03376793]
[1721226135232,0.307631,65013.0,65003.0,0.18760393]
[1721226135233,0.153825,65009.0,65003.0,0.18760393]
[1721226135434,0.307631,65013.0,65003.0,0.18760393]
[1721226135435,0.0658,65018.0,65003.0,0.03376793]
[1721226135636,0.0658,65018.0,65004.0,0.03414609]
[1721226135637,0.15383,65007.0,65004.0,0.03414609]
[1721226135837,0.15383,65007.0,65005.0,0.0027273]
[1721226136051,0.307652,65009.0,65004.0,0.03414609]
[1721226136052,0.153827,65009.0,65004.0,0.03414609]
[1721226136259,0.008,65011.0,65004.0,0.03414609]
[1721226136260,0.008,65011.0,65004.0,0.18798109]
[1721226136489,0.153825,65009.0,65005.0,0.0027273]
[1721226136642,0.008,65011.0,65006.0,0.04983964]
[1721226136643,0.153829,65007.0,65006.0,0.04983964]
[1721226136851,0.001,65009.0,65004.0,0.03414609]
[1721226137061,0.154825,65009.0,65005.0,0.0027273]
[1721226137277,0.001,65009.0,65005.0,0.1565603]
[1721226137484,0.001,65009.0,65006.0,0.15383]
[1721226137677,0.001,65009.0,65005.0,0.307668]
[1721226137678,0.001,65009.0,65007.0,0.1565563]
[1721226137993,0.001,65009.0,65008.0,0.04993704]
[1721226138664,0.001,65009.0,65004.0,0.03414609]
[1721226138803,0.307634,65013.0,65005.0,0.12774497]
[1721226138804,0.153831,65007.0,65005.0,0.12774497]
[1721226139184,0.307658,65008.0,65003.0,0.001]
[1721226139398,0.461509,65004.0,65003.0,0.001]
[1721226139603,0.769182,65004.0,65003.0,0.001]
[1721226139806,0.461509,65004.0,65003.0,0.001]
[1721226140016,0.307664,65006.0,65003.0,0.001]
[1721226140218,0.003,65011.0,65005.0,0.153832]
[1721226140219,0.15682,65011.0,65005.0,0.153832]
[1721226140344,0.15682,65011.0,65004.0,0.307669]
[1721226140345,0.15382,65011.0,65006.0,0.0462501]
[1721226140974,0.0658,65018.0,65006.0,0.0462501]
[1721226140975,0.21958174,65024.0,65008.0,0.307653]
[1721226141360,0.21958174,65024.0,65006.0,0.1216501]
[1721226141361,0.153823,65010.0,65006.0,0.0462501]
[1721226141564,0.153817,65013.0,65007.0,0.0027273]
[1721226141764,0.307626,65014.0,65006.0,0.307662]
[1721226141765,0.153814,65014.0,65006.0,0.307662]
[1721226141890,0.153814,65014.0,65004.0,0.307671]
[1721226141891,0.153814,65014.0,65008.0,0.153825]
[1721226142116,0.153814,65014.0,65009.0,0.0027273]
[1721226142317,0.153806,65017.0,65010.0,0.307644]
[1721226142547,0.153806,65017.0,65013.0,0.0027273]
[1721226142783,0.153804,65018.0,65013.0,0.0027273]
[1721226142940,0.0652,65024.0,65011.0,0.0027273]
[1721226142941,0.38476479,65022.0,65011.0,0.0027273]
[1721226143106,0.07717479,65015.0,65007.0,0.0027273]
[1721226143492,0.07717479,65015.0,64995.0,0.46304871]
[1721226143493,0.307626,65014.0,65003.0,0.0027273]
[1721226143688,0.307626,65014.0,65005.0,0.0027273]
[1721226144270,0.153831,65006.0,65005.0,0.0027273]
[1721226144472,0.307594,65021.0,65001.0,0.0027273]
[1721226144473,0.153829,65007.0,65001.0,0.0027273]
[1721226144715,0.153829,65007.0,65001.0,0.1565693]
[1721226145477,0.153829,65007.0,64995.0,0.0027273]
[1721226145478,0.307682,65002.0,64995.0,0.0027273]
[1721226145675,0.153879,64986.0,64985.0,0.0027273]
[1721226145873,0.153879,64986.0,64979.0,0.0027273]
[1721226146099,0.23325655,65001.0,64983.0,0.0027273]
[1721226146100,0.153875,64988.0,64983.0,0.0027273]
[1721226146461,0.077,65008.0,64986.0,0.153878]
[1721226146698,0.077,65008.0,64987.0,0.0027273]
[1721226146699,0.153865,64992.0,64987.0,0.0027273]
[1721226146903,0.307713,64996.0,64989.0,0.0027273]
[1721226147104,0.307713,64996.0,64990.0,0.153868]
[1721226147105,0.153857,64996.0,64990.0,0.153868]
[1721226147434,0.307704,64998.0,64989.0,0.0027273]
[1721226147435,0.153858,64995.0,64989.0,0.1565983]
[1721226147599,0.153863,64993.0,64989.0,0.0027273]
[1721226148000,0.30772,64995.0,64989.0,0.0027273]
[1721226148208,0.307709,64997.0,64984.0,0.0027273]
[1721226148209,0.153881,64985.0,64984.0,0.0027273]
[1721226148478,0.0816,64992.0,64979.0,0.153895]
[1721226148479,0.307754,64987.0,64979.0,0.153895]
[1721226148682,0.307754,64987.0,64980.0,0.0027273]
[1721226148982,0.307759,64986.0,64981.0,0.01566223]
[1721226149193,0.0816,64992.0,64982.0,0.0027273]
[1721226149194,0.76943,64983.0,64982.0,0.0027273]
[1721226149505,0.76943,64983.0,64973.0,0.000924]
[1721226149506,0.153903,64976.0,64973.0,0.000924]
[1721226149641,0.461722,64974.0,64973.0,0.000924]
[1721226149839,0.153907,64974.0,64973.0,0.000924]
[1721226150447,0.461722,64974.0,64973.0,0.000924]
[1721226150645,0.153907,64974.0,64973.0,0.000924]
[1721226150911,0.307792,64979.0,64973.0,0.000924]
[1721226150912,0.153905,64976.0,64973.0,0.000924]
[1721226151124,0.371717,64995.0,64973.0,0.0164083]
[1721226151283,0.153885,64984.0,64978.0,0.153897]
[1721226151461,0.153891,64981.0,64979.0,0.0027273]
[1721226151662,0.153887,64983.0,64977.0,0.0027273]
[1721226151872,0.307767,64985.0,64977.0,0.0027273]
[1721226151873,0.153889,64982.0,64977.0,0.0027273]
[1721226152074,0.153889,64982.0,64978.0,0.04663683]
[1721226153558,0.307772,64984.0,64983.0,0.307772]
[1721226153559,0.001,64984.0,64983.0,0.307772]
[1721226153774,0.001,64984.0,64979.0,0.1451]
[1721226153891,0.001,64982.0,64980.0,0.02200098]
[1721226154099,0.001,64982.0,64981.0,0.461673]
[1721226155133,0.001,64982.0,64980.0,0.01927368]
[1721226155354,0.001,64982.0,64980.0,0.17316668]
[1721226155506,0.001,64982.0,64981.0,0.1566183]
[1721226155838,0.001,64982.0,64981.0,0.461673]
[1721226156012,0.001,64982.0,64981.0,1.65559383]
[1721226156229,0.307685,65002.0,64981.0,0.12777509]
[1721226156230,0.307706,64998.0,64981.0,0.12777509]
[1721226156547,0.003,64984.0,64983.0,0.153885]
[1721226156775,0.003,64984.0,64983.0,0.1566123]
[1721226156907,0.003,64984.0,64983.0,1.23158274]
[1721226157110,0.003,64984.0,64983.0,1.35936294]
[1721226157313,0.003,64984.0,64983.0,1.38236294]
[1721226157515,0.003,64984.0,64983.0,1.53671251]
[1721226157715,0.0766,65005.0,64989.0,0.15387]
[1721226157911,0.153858,64995.0,64991.0,0.0027273]
[1721226158134,0.153858,64995.0,64990.0,0.1565963]
[1721226158341,0.153861,64994.0,64990.0,0.0027273]
[1721226159064,0.30771,64997.0,64990.0,0.1565963]
[1721226159065,0.153858,64995.0,64990.0,0.1565963]
[1721226159268,0.153867,64991.0,64990.0,0.0027273]
[1721226159470,0.153873,64989.0,64984.0,0.0027273]
[1721226159666,0.307719,64995.0,64984.0,0.0027273]
[1721226159893,0.15387,64990.0,64984.0,0.1566103]
[1721226160140,0.307734,64991.0,64984.0,0.0027273]
[1721226160312,0.307734,64991.0,64983.0,0.007]
[1721226160313,0.461652,64984.0,64983.0,0.007]
[1721226160525,0.15438174,64989.0,64976.0,0.0027273]
[1721226160526,0.307772,64983.0,64976.0,0.0027273]
[1721226160688,0.307772,64983.0,64973.0,0.000924]
[1721226160897,0.153889,64982.0,64974.0,0.43834052]
[1721226161056,0.153902,64977.0,64975.0,0.04392645]
[1721226161257,0.153898,64978.0,64976.0,0.0027273]
[1721226161457,0.307732,64992.0,64981.0,0.307781]
[1721226161759,0.307732,64992.0,64974.0,0.0027273]
[1721226161760,0.307732,64992.0,64982.0,0.307777]
[1721226161962,0.05,65006.0,64982.0,0.307777]
[1721226161963,0.0645,64999.0,64984.0,0.0027273]
[1721226162252,0.0813,65000.0,64985.0,0.28216213]
[1721226162469,0.307702,64998.0,64989.0,0.307741]
[1721226162643,0.307702,64998.0,64986.0,0.04519624]
[1721226162644,0.307713,64996.0,64990.0,0.13050107]
[1721226162837,0.15386,64995.0,64990.0,0.1565963]
[1721226163199,0.153855,64997.0,64991.0,0.153867]
[1721226163409,0.153855,64997.0,64992.0,0.0027273]
[1721226163709,0.153862,64994.0,64992.0,0.0027273]
[1721226163930,0.153862,64994.0,64989.0,0.0027273]
[1721226164130,0.307687,65002.0,64989.0,0.0027273]
[1721226164131,0.461608,64990.0,64989.0,0.0027273]
[1721226164389,0.0652,65004.0,64974.0,0.56304871]
[1721226164390,0.461623,64988.0,64987.0,0.0027273]
[1721226164558,0.461623,64988.0,64977.0,0.0027273]
[1721226164559,0.307778,64982.0,64977.0,0.0027273]
[1721226164773,0.153889,64982.0,64978.0,0.12779198]
[1721226164978,0.307752,64988.0,64979.0,0.13051928]
[1721226165141,0.153878,64987.0,64980.0,0.58946898]
[1721226165373,0.307756,64987.0,64981.0,0.22051891]
[1721226165597,0.307756,64987.0,64981.0,0.13051928]
[1721226165884,0.153888,64982.0,64977.0,0.0027273]
[1721226166128,0.153888,64982.0,64979.0,0.0027273]
[1721226166339,0.153888,64982.0,64974.0,0.307813]
[1721226166340,0.153888,64982.0,64980.0,0.12779398]
[1721226166516,0.153888,64982.0,64977.0,0.1566273]
[1721226166748,0.153888,64982.0,64978.0,0.18194404]
[1721226166952,0.153888,64982.0,64979.0,0.13052491]
[1721226167121,0.307739,64991.0,64979.0,0.0027273]
[1721226167122,0.769467,64980.0,64979.0,0.0027273]
[1721226167398,0.153907,64974.0,64973.0,0.000924]
[1721226167573,0.769537,64974.0,64973.0,0.000924]
[1721226167935,1.077352,64974.0,64973.0,0.000924]
[1721226168766,0.769537,64974.0,64973.0,0.000924]
[1721226169368,0.153907,64974.0,64973.0,0.000924]
[1721226169791,0.461722,64974.0,64973.0,0.000924]
[1721226170332,0.775537,64974.0,64973.0,0.000924]
[1721226171368,0.467722,64974.0,64973.0,0.000924]
[1721226171711,0.473722,64974.0,64973.0,0.000924]
[1721226172432,1.089352,64974.0,64973.0,0.000924]
[1721226172620,0.781537,64974.0,64973.0,0.000924]
[1721226173037,0.769537,64974.0,64973.0,0.000924]
[1721226173466,0.775537,64974.0,64973.0,0.000924]
[1721226174435,0.006,64974.0,64973.0,0.000924]
[1721226174630,0.006,64974.0,64973.0,0.0164082]
[1721226174834,0.467722,64974.0,64973.0,0.000924]
[1721226175061,0.775537,64974.0,64973.0,0.000924]
[1721226175260,0.467722,64974.0,64973.0,0.000924]
[1721226175774,0.467722,64974.0,64973.0,0.1287405]
[1721226176180,0.006,64974.0,64973.0,0.1287405]
[1721226176376,0.006,64974.0,64973.0,0.15700595]
[1721226177149,0.006,64974.0,64973.0,0.99075595]
[1721226177682,0.006,64974.0,64973.0,0.86293945]
[1721226177877,0.006,64974.0,64973.0,0.15698521]
[1721226178078,0.006,64974.0,64973.0,0.28262976]
[1721226178279,0.153903,64976.0,64973.0,0.12872835]
[1721226178523,0.153903,64976.0,64974.0,0.13053165]
[1721226178743,0.153898,64978.0,64975.0,0.12780435]
[1721226178930,0.153901,64977.0,64976.0,0.12780435]
[1721226179482,0.4784,64988.0,64976.0,0.14067719]
[1721226179483,0.153884,64984.0,64976.0,0.14067719]
[1721226179684,0.153884,64984.0,64978.0,0.153897]
[1721226180043,0.307767,64985.0,64979.0,0.13053165]
[1721226180244,0.153891,64981.0,64980.0,0.12780435]
[1721226180422,0.4784,64988.0,64980.0,0.12780435]
[1721226180775,0.307726,64993.0,64976.0,0.307804]
[1721226180776,0.153883,64985.0,64981.0,0.17135638]
[1721226180912,0.153883,64985.0,64982.0,0.12779554]
[1721226181113,0.153884,64984.0,64983.0,0.12779554]
[1721226181334,0.04593241,65004.0,64981.0,0.04356084]
[1721226181508,0.15387,64990.0,64984.0,0.153882]
[1721226181711,0.153866,64992.0,64985.0,0.12779464]
[1721226181905,0.4784,65001.0,64986.0,0.12779464]
[1721226182110,0.153855,64996.0,64991.0,0.153866]
[1721226182367,0.153853,64998.0,64992.0,0.28165864]
[1721226182616,0.15386,64994.0,64993.0,0.12779464]
[1721226182824,0.153874,64988.0,64982.0,0.0634]
[1721226183028,0.153874,64988.0,64983.0,0.0027273]
[1721226183229,0.153874,64988.0,64984.0,0.12778125]
[1721226183379,0.769395,64986.0,64985.0,0.12778125]
[1721226183580,0.153895,64979.0,64973.0,0.1575593]
[1721226183802,0.153895,64980.0,64974.0,0.20006134]
[1721226183998,0.153895,64980.0,64975.0,0.13052118]
[1721226184178,0.1539,64977.0,64976.0,0.12779388]
[1721226184381,0.461701,64977.0,64976.0,0.12779388]
[1721226184580,0.461701,64977.0,64973.0,0.000924]
[1721226184581,1.220552,64974.0,64973.0,0.000924]
[1721226184783,0.0606,64981.0,64973.0,0.000924]
[1721226185129,0.153907,64974.0,64973.0,0.008924]
[1721226185622,0.0606,64981.0,64973.0,0.008924]
[1721226185824,0.153904,64976.0,64973.0,0.008924]
[1721226186053,0.153896,64979.0,64973.0,0.008924]
[1721226186171,0.153901,64977.0,64974.0,0.05819653]
[1721226186375,0.153905,64975.0,64974.0,0.05819653]
[1721226186603,0.153905,64975.0,64973.0,0.000924]
[1721226186974,0.0628,64988.0,64973.0,0.000924]
[1721226186975,0.769537,64974.0,64973.0,0.000924]
[1721226187364,1.37783374,64974.0,64973.0,0.000924]
[1721226187748,1.78564874,64974.0,64973.0,0.000924]
[1721226187922,1.8557147,64974.0,64973.0,0.000924]
[1721226188139,1.80973229,64974.0,64973.0,0.000924]
[1721226188314,1.8787313,64974.0,64973.0,0.000924]
[1721226188514,1.831632,64974.0,64973.0,0.001924]
[1721226188904,1.47783374,64974.0,64973.0,0.001924]
[1721226189133,1.47783374,64974.0,64973.0,0.000924]
[1721226189337,1.93999831,64974.0,64973.0,0.000924]
[1721226189619,1.93999831,64974.0,64962.0,0.009174]
[1721226189620,1.627503,64965.0,64962.0,0.009174]
[1721226189817,0.366133,64963.0,64962.0,0.009174]
[1721226190029,0.366133,64963.0,64959.0,0.009185]
[1721226190030,0.674021,64960.0,64959.0,0.009185]
[1721226190234,0.674021,64960.0,64941.0,0.009174]
[1721226190235,0.915737,64957.0,64941.0,0.009174]
[1721226190373,2.02396373,64957.0,64941.0,0.009174]
[1721226190576,2.28590874,64957.0,64941.0,0.009174]
[1721226190800,2.33590874,64957.0,64941.0,0.009174]
[1721226191000,2.83009535,64957.0,64941.0,0.009174]
[1721226191205,2.98444492,64957.0,64941.0,0.009174]
[1721226191609,3.09927984,64957.0,64941.0,0.009174]
[1721226191948,2.82900374,64957.0,64941.0,0.009174]
[1721226192350,1.221784,64942.0,64941.0,0.009174]
[1721226192553,1.37616574,64942.0,64941.0,0.009174]
[1721226192757,1.83413274,64942.0,64941.0,0.009174]
[1721226192970,2.30429974,64942.0,64941.0,0.009174]
[1721226193209,2.48164931,64942.0,64941.0,0.009174]
[1721226194045,2.43164931,64942.0,64941.0,0.009174]
[1721226194319,1.94633274,64942.0,64941.0,0.009174]
[1721226194525,2.01933274,64942.0,64941.0,0.009174]
[1721226194678,1.99633274,64942.0,64941.0,0.009174]
[1721226194885,2.32729974,64942.0,64941.0,0.009174]
[1721226195105,2.48164931,64942.0,64941.0,0.009174]
[1721226195507,2.78961631,64942.0,64941.0,0.009174]
[1721226195710,2.546995,64939.0,64934.0,0.009174]
[1721226195914,2.82437674,64939.0,64934.0,0.009174]
[1721226196752,1.78119574,64939.0,64934.0,0.009174]
[1721226196888,1.62756431,64939.0,64934.0,0.009174]
[1721226197293,1.48721474,64939.0,64934.0,0.009174]